fUST/lending_fUST_20240808
["ID","MTS","AMOUNT","RATE_DAILY","PERIOD"]
[334451225,1723109440614,-205.0,0.00028395,2]
[334451226,1723109440624,-205.0,0.00028395,2]
[334451227,1723109440634,-205.0,0.00028395,2]
[334451228,1723109440643,-205.0,0.00028395,2]
[334451229,1723109440654,-205.0,0.00028395,2]
[334451230,1723109440664,-205.0,0.00028395,2]
[334451231,1723109440673,-205.0,0.00028395,2]
[334451232,1723109440684,-205.0,0.00028395,2]
[334451233,1723109440697,-205.0,0.00028395,2]
[334451234,1723109440707,-205.0,0.00028395,2]
[334451235,1723109440720,-205.0,0.00028395,2]
[334451236,1723109440731,-348.0,0.00028395,2]
[334451237,1723109440741,-348.0,0.00028395,2]
[334451238,1723109440753,-348.0,0.00028395,2]
[334451239,1723109440763,-348.0,0.00028395,2]
[334451240,1723109440773,-348.0,0.00028395,2]
[334451241,1723109440784,-348.0,0.00028395,2]
[334451242,1723109440794,-348.0,0.00028395,2]
[334451243,1723109440804,-348.0,0.00028395,2]
[334451244,1723109440813,-348.0,0.00028395,2]
[334451245,1723109440824,-348.0,0.00028395,2]
[334451246,1723109440834,-348.0,0.00028395,2]
[334451247,1723109440846,-348.0,0.00028395,2]
[334451248,1723109440856,-348.0,0.00028395,2]
[334451249,1723109440866,-348.0,0.00028395,2]
[334451250,1723109440876,-205.0,0.00028395,2]
[334451251,1723109441061,-205.0,0.00028395,2]
[334451252,1723109441071,-205.0,0.00028395,2]
[334451253,1723109441082,-205.0,0.00028395,2]
[334451254,1723109441095,-205.0,0.00028395,2]
[334451255,1723109441107,-205.0,0.00028395,2]
[334451256,1723109441116,-205.0,0.00028395,2]
[334451257,1723109441126,-205.0,0.00028395,2]
[334451258,1723109441137,-205.0,0.00028395,2]
[334451259,1723109441147,-205.0,0.00028395,2]
[334451260,1723109441156,-205.0,0.00028395,2]
[334451261,1723109441168,-205.0,0.00028395,2]
[334451262,1723109441178,-205.0,0.00028395,2]
[334451263,1723109441189,-205.0,0.00028395,2]
[334451264,1723109441199,-348.0,0.00028395,2]
[334451265,1723109441209,-348.0,0.00028395,2]
[334451266,1723109441220,-348.0,0.00028395,2]
[334451267,1723109441229,-348.0,0.00028395,2]
[334451268,1723109441238,-348.0,0.00028395,2]
[334451269,1723109441248,-348.0,0.00028395,2]
[334451270,1723109441258,-348.0,0.00028395,2]
[334451271,1723109441268,-348.0,0.00028395,2]
[334451272,1723109441278,-348.0,0.00028395,2]
[334451273,1723109441287,-348.0,0.00028395,2]
[334451274,1723109441297,-348.0,0.00028395,2]
[334451275,1723109441307,-348.0,0.00028395,2]
[334451276,1723109441316,-348.0,0.00028395,2]
[334451277,1723109441326,-348.0,0.00028395,2]
[334451278,1723109441335,-205.0,0.00028395,2]
[334451279,1723109441345,-205.0,0.00028395,2]
[334451280,1723109441355,-205.0,0.00028395,2]
[334451281,1723109441364,-205.0,0.00028395,2]
[334451282,1723109441375,-205.0,0.00028395,2]
[334451283,1723109441385,-205.0,0.00028395,2]
[334451284,1723109441394,-205.0,0.00028395,2]
[334451285,1723109441403,-205.0,0.00028395,2]
[334451286,1723109441413,-205.0,0.00028395,2]
[334451287,1723109441422,-205.0,0.00028395,2]
[334451288,1723109441432,-205.0,0.00028395,2]
[334451289,1723109441441,-205.0,0.00028395,2]
[334451290,1723109441451,-205.0,0.00028395,2]
[334451291,1723109441461,-205.0,0.00028395,2]
[334451292,1723109441471,-348.0,0.00028395,2]
[334451293,1723109441481,-348.0,0.00028395,2]
[334451294,1723109441491,-348.0,0.00028395,2]
[334451295,1723109441500,-348.0,0.00028395,2]
[334451296,1723109441510,-348.0,0.00028395,2]
[334451297,1723109441520,-348.0,0.00028395,2]
[334451298,1723109441530,-348.0,0.00028395,2]
[334451299,1723109441540,-348.0,0.00028395,2]
[334451300,1723109441550,-348.0,0.00028395,2]
[334451301,1723109441559,-348.0,0.00028395,2]
[334451302,1723109441569,-348.0,0.00028395,2]
[334451303,1723109441579,-348.0,0.00028395,2]
[334451304,1723109441589,-348.0,0.00028395,2]
[334451305,1723109441599,-348.0,0.00028395,2]
[334451306,1723109441609,-151.0,0.00028395,7]
[334451307,1723109441620,-151.0,0.00028395,2]
[334451308,1723109441630,-151.0,0.00028395,7]
[334451309,1723109441639,-151.0,0.00028395,7]
[334451310,1723109441649,-212.412977,0.00028395,7]
[334451311,1723109441659,-212.412977,0.00028395,7]
[334451312,1723109441669,-289.768265,0.00028395,2]
[334451313,1723109441679,-289.768265,0.00028395,2]
[334451314,1723109441691,-177.538759,0.00028395,7]
[334451315,1723109441702,-177.538759,0.00028395,7]
[334451316,1723109441713,-539.071821,0.00028395,7]
[334451317,1723109441725,-539.071821,0.00028395,7]
[334451318,1723109441734,-812.558115,0.00028395,7]
[334451319,1723109441743,-812.558115,0.00028395,7]
[334451320,1723109441753,-151.0,0.00028395,7]
[334451321,1723109441763,-151.0,0.00028395,7]
[334451322,1723109441774,-151.0,0.00028395,7]
[334451323,1723109441784,-365.07951,0.00028395,7]
[334451324,1723109441794,-365.07951,0.00028395,7]
[334451325,1723109441804,-151.0,0.00028395,7]
[334451326,1723109441813,-151.0,0.00028395,7]
[334451327,1723109441825,-600.0,0.00028405,2]
[334451328,1723109441835,-150.0,0.00028428,2]
[334451329,1723109441845,-151.0,0.0002847,7]
[334451330,1723109441855,-151.0,0.0002847,7]
[334451331,1723109441865,-151.0,0.0002847,7]
[334451332,1723109441875,-151.0,0.00028632,5]
[334451333,1723109441885,-151.0,0.00028632,5]
[334451334,1723109441896,-600.0,0.00028701,2]
[334451335,1723109441905,-150.0,0.00028724,2]
[334451336,1723109441917,-400.99530001,0.00028742,5]
[334451337,1723109441927,-400.0,0.00028742,5]
[334451338,1723109441936,-400.0,0.00028742,5]
[334451339,1723109441947,-400.0,0.00028742,5]
[334451340,1723109441957,-267.0,0.00028767,2]
[334451341,1723109441967,-400.0,0.00028842,5]
[334451342,1723109441977,-2000.0,0.000289,2]
[334451343,1723109441988,-676.577871,0.000289,7]
[334451344,1723109441998,-676.577871,0.000289,7]
[334451345,1723109442008,-792.40751736,0.00028997,2]
[334451346,1723109442018,-9463.3791056,0.00029,2]
[334451347,1723109442028,-27605.74031577,0.0002903,3]
[334451348,1723109442048,-5172.17666883,0.0002903,3]
[334451349,1723109442058,-18273.63209005,0.0002904,11]
[334451350,1723109442085,-25106.77853588,0.0002904,11]
[334451351,1723109442099,-68576.80787684,0.0002904,3]
[334451352,1723109442109,-151.0,0.0002904,7]
[334451353,1723109442118,-212.412977,0.0002904,7]
[334451354,1723109442128,-212.412977,0.0002904,7]
[334451355,1723109442138,-151.0,0.0002904,7]
[334451356,1723109442147,-205.240839,0.0002904,7]
[334451357,1723109442157,-205.240839,0.0002904,7]
[334451358,1723109442167,-635.341889,0.0002904,7]
[334451359,1723109442178,-635.341889,0.0002904,7]
[334451360,1723109442188,-151.0,0.00029111,5]
[334451361,1723109442198,-151.0,0.00029111,5]
[334451362,1723109442209,-271.5025496,0.00029379,2]
[334451363,1723109442221,-294.4971025,0.00029379,2]
[334451364,1723109442231,-5100.0,0.00029571,2]
[334451365,1723109442241,-5400.0,0.00029573,2]
[334451366,1723109442251,-151.0,0.00029573,7]
[334451367,1723109442260,-151.0,0.00029573,7]
[334451368,1723109442270,-289.768265,0.00029589,2]
[334451369,1723109442280,-289.768265,0.00029589,2]
[334451370,1723109442289,-177.538759,0.00029589,7]
[334451371,1723109442299,-177.538759,0.00029589,7]
[334451372,1723109442309,-539.071821,0.00029589,7]
[334451373,1723109442320,-539.071821,0.00029589,7]
[334451374,1723109442331,-151.0,0.00029589,5]
[334451375,1723109442340,-151.0,0.00029589,5]
[334451376,1723109442350,-151.0,0.00029589,7]
[334451377,1723109442362,-792.334136,0.00029589,7]
[334451378,1723109442372,-792.334136,0.00029589,7]
[334451379,1723109442382,-2000.0,0.0002965,2]
[334451380,1723109442392,-812.558115,0.00029693,7]
[334451381,1723109442402,-812.558115,0.00029693,7]
[334451382,1723109442411,-151.0,0.00029693,7]
[334451383,1723109442421,-160.217986,0.00029693,7]
[334451384,1723109442430,-676.577871,0.00029693,7]
[334451385,1723109442441,-676.577871,0.00029693,7]
[334451386,1723109442451,-365.07951,0.00029693,7]
[334451387,1723109442462,-365.07951,0.00029693,7]
[334451388,1723109442477,-151.0,0.00029693,7]
[334451389,1723109442487,-151.0,0.00029693,7]
[334451390,1723109442496,-18200.32,0.00029696,30]
[334451391,1723109442506,-5400.0,0.00029697,2]
[334451392,1723109442516,-500.0,0.00029707,2]
[334451393,1723109442525,-500.0,0.00029738,2]
[334451394,1723109442535,-2500.0,0.00029742,2]
[334451395,1723109442545,-151.0,0.00029749,7]
[334451396,1723109442554,-151.0,0.00029749,7]
[334451397,1723109442564,-151.0,0.00029749,7]
[334451398,1723109442576,-2500.0,0.00029749,2]
[334451399,1723109442587,-205.0,0.0002975,2]
[334451400,1723109442596,-205.0,0.0002975,2]
[334451401,1723109442605,-205.0,0.0002975,2]
[334451402,1723109442615,-205.0,0.0002975,2]
[334451403,1723109442625,-205.0,0.0002975,2]
[334451404,1723109442635,-205.0,0.0002975,2]
[334451405,1723109442646,-205.0,0.0002975,2]
[334451406,1723109442656,-205.0,0.0002975,2]
[334451407,1723109442666,-205.0,0.0002975,2]
[334451408,1723109442677,-205.0,0.0002975,2]
[334451409,1723109442686,-205.0,0.0002975,2]
[334451410,1723109442696,-205.0,0.0002975,2]
[334451411,1723109442706,-348.0,0.0002975,2]
[334451412,1723109442715,-348.0,0.0002975,2]
[334451413,1723109442726,-348.0,0.0002975,2]
[334451414,1723109442736,-348.0,0.0002975,2]
[334451415,1723109442746,-348.0,0.0002975,2]
[334451416,1723109442755,-348.0,0.0002975,2]
[334451417,1723109442765,-348.0,0.0002975,2]
[334451418,1723109442775,-348.0,0.0002975,2]
[334451419,1723109442784,-348.0,0.0002975,2]
[334451420,1723109442794,-348.0,0.0002975,2]
[334451421,1723109442804,-348.0,0.0002975,2]
[334451423,1723109442813,-348.0,0.0002975,2]
[334451424,1723109442825,-348.0,0.0002975,2]
[334451425,1723109442836,-205.0,0.0002975,2]
[334451426,1723109442846,-205.0,0.0002975,2]
[334451427,1723109442855,-205.0,0.0002975,2]
[334451428,1723109442865,-205.0,0.0002975,2]
[334451429,1723109442875,-205.0,0.0002975,2]
[334451430,1723109442884,-205.0,0.0002975,2]
[334451431,1723109442893,-205.0,0.0002975,2]
[334451432,1723109442903,-205.0,0.0002975,2]
[334451433,1723109442912,-205.0,0.0002975,2]
[334451434,1723109442922,-205.0,0.0002975,2]
[334451435,1723109442932,-205.0,0.0002975,2]
[334451436,1723109442941,-205.0,0.0002975,2]
[334451437,1723109442951,-205.0,0.0002975,2]
[334451438,1723109442961,-205.0,0.0002975,2]
[334451439,1723109442972,-348.0,0.0002975,2]
[334451440,1723109442981,-348.0,0.0002975,2]
[334451441,1723109442990,-348.0,0.0002975,2]
[334451442,1723109442999,-348.0,0.0002975,2]
[334451443,1723109443009,-348.0,0.0002975,2]
[334451444,1723109443018,-348.0,0.0002975,2]
[334451445,1723109443029,-348.0,0.0002975,2]
[334451446,1723109443038,-348.0,0.0002975,2]
[334451448,1723109443048,-348.0,0.0002975,2]
[334451450,1723109443058,-348.0,0.0002975,2]
[334451452,1723109443068,-348.0,0.0002975,2]
[334451454,1723109443077,-348.0,0.0002975,2]
[334451455,1723109443089,-348.0,0.0002975,2]
[334451456,1723109443100,-348.0,0.0002975,2]
[334451457,1723109443109,-258.74404287,0.00029881,2]
[334451458,1723109443119,-3425.93200482,0.00029912,2]
[334451462,1723109444474,-209.86227882,0.00019451,2]
[334451463,1723109444484,-174.06799518,0.00029912,2]
[334451464,1723109444494,-221.733,0.0003,5]
[334451465,1723109444504,-458.94514019,0.0003,5]
[334451466,1723109444514,-318.26,0.0003,7]
[334451467,1723109444524,-284.83809153,0.0003,3]
[334451468,1723109444535,-1017.0,0.0003,7]
[334451469,1723109444545,-154.69833824,0.0003,4]
[334451470,1723109444555,-154.68290005,0.0003,2]
[334451471,1723109444565,-193.73035013,0.0003,2]
[334451472,1723109444575,-208.89860768,0.0003,2]
[334451473,1723109444585,-3600.0,0.0003,7]
[334451474,1723109444594,-204.0,0.0003,2]
[334451475,1723109444606,-302.48582854,0.0003,2]
[334451476,1723109444616,-315.26945087,0.0003,2]
[334451477,1723109444629,-302.48582854,0.0003,2]
[334451478,1723109444640,-302.48582854,0.0003,2]
[334451479,1723109444651,-500.0,0.00030025,7]
[334451480,1723109444662,-2500.0,0.00030113,7]
[334451481,1723109444673,-151.0,0.00030117,7]
[334451482,1723109444682,-792.334136,0.00030117,7]
[334451483,1723109444693,-792.334136,0.00030117,7]
[334451484,1723109444703,-5100.0,0.00030132,7]
[334451485,1723109444715,-5100.0,0.00030189,7]
[334451486,1723109444725,-267.0,0.00030205,2]
[334451487,1723109444734,-5100.0,0.00030322,7]
[334451488,1723109444743,-151.0,0.00030322,7]
[334451489,1723109444755,-205.240839,0.00030322,7]
[334451490,1723109444766,-205.240839,0.00030322,7]
[334451491,1723109444775,-635.341889,0.00030322,7]
[334451492,1723109444784,-635.341889,0.00030322,7]
[334451493,1723109444794,-177.538759,0.00030358,7]
[334451494,1723109444804,-177.538759,0.00030358,7]
[334451495,1723109444815,-602.0,0.000304,2]
[334451496,1723109444825,-500.0,0.00030403,7]
[334451497,1723109445001,-210.275677,0.00030403,7]
[334451498,1723109445011,-151.0,0.00030403,7]
[334451499,1723109445021,-500.0,0.0003041,7]
[334451500,1723109445031,-676.577871,0.00030426,7]
[334451501,1723109445041,-676.577871,0.00030426,7]
[334451502,1723109445051,-5400.0,0.00030428,7]
[334451503,1723109445061,-812.558115,0.0003049,7]
[334451504,1723109445071,-812.558115,0.0003049,7]
[334451505,1723109445081,-151.0,0.0003049,7]
[334451506,1723109445094,-365.07951,0.0003049,7]
[334451507,1723109445104,-365.07951,0.0003049,7]
[334451508,1723109445114,-151.0,0.0003049,7]
[334451509,1723109445123,-151.0,0.0003049,7]
[334451510,1723109445135,-500.0,0.00030501,7]
[334451511,1723109445145,-500.0,0.00030564,7]
[334451512,1723109445154,-2500.0,0.00030622,7]
[334451513,1723109445164,-5400.0,0.00030626,7]
[334451514,1723109445175,-289.768265,0.00030673,2]
[334451515,1723109445185,-289.768265,0.00030673,2]
[334451516,1723109445195,-539.071821,0.00030673,7]
[334451517,1723109445205,-539.071821,0.00030673,7]
[334451518,1723109445215,-150.0,0.00030705,2]
[334451519,1723109445226,-507.0,0.00030705,2]
[334451520,1723109445235,-1412.0,0.00030705,2]
[334451521,1723109445245,-151.0,0.00030708,7]
[334451522,1723109445254,-212.412977,0.00030708,7]
[334451523,1723109445264,-212.412977,0.00030708,7]
[334451524,1723109445274,-3600.0,0.00030725,7]
[334451525,1723109445284,-150.0,0.00030726,2]
[334451526,1723109445294,-150.0,0.00030726,2]
[334451527,1723109445303,-500.0,0.00030736,7]
[334451528,1723109445313,-524.81976119,0.00030746,5]
[334451529,1723109445323,-600.0,0.00030746,5]
[334451530,1723109445332,-600.0,0.00030746,5]
[334451531,1723109445342,-8408.18964692,0.000308,2]
[334451535,1723109446422,-151.0,0.00028385,7]
[334451536,1723109446432,-151.0,0.00028385,7]
[334451537,1723109446442,-151.0,0.0002904,7]
[334451538,1723109446453,-151.0,0.0002904,7]
[334451539,1723109446462,-151.0,0.00030322,7]
[334451540,1723109446472,-5023.22491517,0.000308,2]
[334451541,1723109446514,-1434.22409934,0.000308,2]
[334451542,1723109446526,-333.3986771,0.000308,2]
[334451586,1723109760879,195.434372,0.00014247,2]
[334451592,1723109829051,1495.72315932,0.00014247,2]
[334451617,1723110252213,168.176294,0.00014247,2]
[334451673,1723110632474,-951.94046237,0.00015952,2]
[334451675,1723110632485,-2139.49023769,0.00015954,2]
[334451677,1723110632495,-203.38615614,0.00016095,2]
[334451679,1723110632504,-215.44593649,0.00016095,2]
[334451681,1723110632516,-2750.81214865,0.00016347,2]
[334451683,1723110632528,-434.4293937,0.00016347,2]
[334451687,1723110632556,-350.71478825,0.00016347,2]
[334451689,1723110632569,-33941.08644115,0.00016347,2]
[334451691,1723110632578,-708.7117603,0.00016971,2]
[334451693,1723110632589,-500.0,0.00019154,2]
[334451695,1723110632599,-204.79582822,0.00019154,2]
[334451697,1723110632609,-2870.67305949,0.00019155,2]
[334451699,1723110632618,-1842.92671509,0.00019155,2]
[334451701,1723110632628,-5238.95624179,0.00019167,2]
[334451703,1723110632637,-2667.31038065,0.00019167,2]
[334451705,1723110632650,-736.02,0.00019167,2]
[334451727,1723110640880,-1835.62586114,0.00019167,2]
[334451729,1723110640892,-155.52327347,0.00019256,2]
[334451731,1723110640902,-472.12044886,0.00019477,2]
[334451733,1723110640912,-192.26710228,0.00019477,2]
[334451735,1723110640923,-209.86227882,0.00019547,2]
[334451737,1723110640933,-704.81645422,0.0002028,2]
[334451739,1723110640944,-167.30636181,0.00025184,2]
[334451741,1723110640954,-162.47169,0.00025833,2]
[334451743,1723110640964,-200.0,0.00026027,2]
[334451745,1723110640974,-168.176294,0.00026521,2]
[334451747,1723110640984,-305.65463372,0.00027396,2]
[334451749,1723110640994,-2605.08504403,0.00027396,2]
[334451751,1723110641003,-547.8135611,0.00027397,14]
[334451752,1723110641013,-150.0,0.000276,2]
[334451753,1723110641022,-150.0,0.00028045,2]
[334451754,1723110641032,-507.0,0.00028045,2]
[334451755,1723110641043,-1412.0,0.00028045,2]
[334451756,1723110641055,-153.0,0.000283,2]
[334451757,1723110641065,-153.0,0.000283,2]
[334451758,1723110641074,-252.0,0.000283,2]
[334451759,1723110641084,-252.0,0.000283,2]
[334451760,1723110641093,-252.0,0.000283,2]
[334451761,1723110641103,-252.0,0.000283,2]
[334451762,1723110641112,-252.0,0.000283,2]
[334451763,1723110641122,-153.0,0.000283,2]
[334451764,1723110641131,-153.0,0.000283,2]
[334451765,1723110641140,-153.0,0.000283,2]
[334451766,1723110641151,-153.0,0.000283,2]
[334451767,1723110641160,-153.0,0.000283,2]
[334451768,1723110641170,-153.0,0.000283,2]
[334451769,1723110641179,-153.0,0.000283,2]
[334451770,1723110641188,-153.0,0.000283,2]
[334451771,1723110641198,-153.0,0.000283,2]
[334451772,1723110641206,-153.0,0.000283,2]
[334451773,1723110641216,-153.0,0.000283,2]
[334451774,1723110641226,-153.0,0.000283,2]
[334451775,1723110641236,-153.0,0.000283,2]
[334451776,1723110641249,-153.0,0.000283,2]
[334451777,1723110641261,-153.0,0.000283,2]
[334451778,1723110641271,-153.0,0.000283,2]
[334451779,1723110641281,-252.0,0.000283,2]
[334451780,1723110641291,-252.0,0.000283,2]
[334451781,1723110641303,-252.0,0.000283,2]
[334451782,1723110641313,-252.0,0.000283,2]
[334451783,1723110641323,-252.0,0.000283,2]
[334451784,1723110641335,-252.0,0.000283,2]
[334451785,1723110641345,-252.0,0.000283,2]
[334451786,1723110641354,-252.0,0.000283,2]
[334451787,1723110641364,-252.0,0.000283,2]
[334451788,1723110641373,-252.0,0.000283,2]
[334451789,1723110641382,-252.0,0.000283,2]
[334451790,1723110641391,-252.0,0.000283,2]
[334451791,1723110641400,-252.0,0.000283,2]
[334451792,1723110641410,-252.0,0.000283,2]
[334451793,1723110641422,-252.0,0.000283,2]
[334451794,1723110641432,-252.0,0.000283,2]
[334451795,1723110641442,-153.0,0.000283,2]
[334451796,1723110641452,-153.0,0.000283,2]
[334451797,1723110641462,-153.0,0.000283,2]
[334451798,1723110641472,-153.0,0.000283,2]
[334451799,1723110641485,-153.0,0.000283,2]
[334451800,1723110641494,-153.0,0.000283,2]
[334451801,1723110641504,-153.0,0.000283,2]
[334451802,1723110641513,-153.0,0.000283,2]
[334451803,1723110641523,-153.0,0.000283,2]
[334451804,1723110641531,-153.0,0.000283,2]
[334451805,1723110641541,-153.0,0.000283,2]
[334451806,1723110641553,-153.0,0.000283,2]
[334451807,1723110641562,-153.0,0.000283,2]
[334451808,1723110641573,-153.0,0.000283,2]
[334451809,1723110641582,-252.0,0.000283,2]
[334451810,1723110641591,-252.0,0.000283,2]
[334451811,1723110641601,-252.0,0.000283,2]
[334451812,1723110641610,-252.0,0.000283,2]
[334451813,1723110641619,-252.0,0.000283,2]
[334451814,1723110641629,-252.0,0.000283,2]
[334451815,1723110641638,-252.0,0.000283,2]
[334451816,1723110641647,-252.0,0.000283,2]
[334451817,1723110641657,-252.0,0.000283,2]
[334451818,1723110641666,-252.0,0.000283,2]
[334451819,1723110641675,-252.0,0.000283,2]
[334451820,1723110641685,-252.0,0.000283,2]
[334451821,1723110641695,-252.0,0.000283,2]
[334451822,1723110641704,-252.0,0.000283,2]
[334451823,1723110641713,-153.0,0.000283,2]
[334451824,1723110641723,-153.0,0.000283,2]
[334451825,1723110641732,-153.0,0.000283,2]
[334451826,1723110641742,-153.0,0.000283,2]
[334451827,1723110641752,-153.0,0.000283,2]
[334451828,1723110641761,-153.0,0.000283,2]
[334451829,1723110641770,-153.0,0.000283,2]
[334451830,1723110641781,-153.0,0.000283,2]
[334451831,1723110641790,-153.0,0.000283,2]
[334451832,1723110641803,-153.0,0.000283,2]
[334451833,1723110641812,-153.0,0.000283,2]
[334451834,1723110641822,-153.0,0.000283,2]
[334451835,1723110641831,-153.0,0.000283,2]
[334451836,1723110641841,-153.0,0.000283,2]
[334451837,1723110641850,-252.0,0.000283,2]
[334451838,1723110641860,-252.0,0.000283,2]
[334451839,1723110641869,-252.0,0.000283,2]
[334451840,1723110641880,-252.0,0.000283,2]
[334451841,1723110641891,-252.0,0.000283,2]
[334451842,1723110641901,-252.0,0.000283,2]
[334451843,1723110641910,-252.0,0.000283,2]
[334451844,1723110641922,-252.0,0.000283,2]
[334451845,1723110641931,-252.0,0.000283,2]
[334451846,1723110641940,-252.0,0.000283,2]
[334451847,1723110641950,-252.0,0.000283,2]
[334451848,1723110641959,-252.0,0.000283,2]
[334451849,1723110641969,-252.0,0.000283,2]
[334451850,1723110641978,-252.0,0.000283,2]
[334451851,1723110641987,-1000.0,0.00029,29]
[334451852,1723110641997,-600.0,0.00029568,2]
[334451853,1723110642007,-516.49573925,0.00029584,2]
[334451854,1723110642016,-151.0,0.00029684,5]
[334451855,1723110642025,-4900.0,0.0002972,2]
[334451856,1723110642035,-2000.0,0.00029748,2]
[334451857,1723110642044,-12689.04,0.00029774,3]
[334451858,1723110642056,-15226.84,0.00029784,3]
[334451859,1723110642066,-3758.47834472,0.00029794,3]
[334451867,1723110643519,-3148.69329095,0.00029794,3]
[334451875,1723110646674,-23252.50238233,0.00029794,3]
[334451876,1723110646684,-4900.0,0.00029822,2]
[334451877,1723110646693,-516.49573921,0.00029861,2]
[334451878,1723110646703,-600.0,0.00029876,2]
[334451879,1723110646712,-150.112233,0.000299,8]
[334451880,1723110646722,-30159.674018,0.00029912,4]
[334451881,1723110646732,-500.0,0.0002992,2]
[334451882,1723110646743,-188.13208474,0.0002992,2]
[334451883,1723110646753,-500.0,0.0002992,2]
[334451884,1723110646763,-500.0,0.0002992,2]
[334451885,1723110646772,-500.0,0.0002992,2]
[334451886,1723110646782,-500.0,0.0002992,2]
[334451887,1723110646791,-589.71975808,0.0002992,2]
[334451888,1723110646800,-500.0,0.0002992,2]
[334451889,1723110646814,-9658.56578922,0.00029921,11]
[334451890,1723110646823,-153.0,0.00029922,2]
[334451891,1723110646832,-153.0,0.00029922,2]
[334451892,1723110646841,-153.0,0.00029922,2]
[334451893,1723110646850,-153.0,0.00029922,2]
[334451894,1723110646860,-153.0,0.00029922,2]
[334451895,1723110646870,-153.0,0.00029922,2]
[334451896,1723110646879,-153.0,0.00029922,2]
[334451897,1723110646888,-252.0,0.00029922,2]
[334451898,1723110646898,-252.0,0.00029922,2]
[334451899,1723110646909,-252.0,0.00029922,2]
[334451900,1723110646918,-252.0,0.00029922,2]
[334451901,1723110646927,-252.0,0.00029922,2]
[334451902,1723110646936,-252.0,0.00029922,2]
[334451903,1723110646946,-153.0,0.00029922,2]
[334451904,1723110646955,-153.0,0.00029922,2]
[334451905,1723110646965,-153.0,0.00029922,2]
[334451906,1723110646974,-153.0,0.00029922,2]
[334451907,1723110646984,-153.0,0.00029922,2]
[334451908,1723110646993,-153.0,0.00029922,2]
[334451909,1723110647002,-153.0,0.00029922,2]
[334451910,1723110647012,-153.0,0.00029922,2]
[334451911,1723110647022,-153.0,0.00029922,2]
[334451912,1723110647031,-153.0,0.00029922,2]
[334451913,1723110647040,-153.0,0.00029922,2]
[334451914,1723110647049,-153.0,0.00029922,2]
[334451915,1723110647062,-153.0,0.00029922,2]
[334451916,1723110647072,-153.0,0.00029922,2]
[334451917,1723110647081,-252.0,0.00029922,2]
[334451918,1723110647090,-252.0,0.00029922,2]
[334451919,1723110647099,-252.0,0.00029922,2]
[334451920,1723110647113,-252.0,0.00029922,2]
[334451921,1723110647123,-252.0,0.00029922,2]
[334451922,1723110647132,-252.0,0.00029922,2]
[334451923,1723110647141,-252.0,0.00029922,2]
[334451924,1723110647150,-252.0,0.00029922,2]
[334451925,1723110647160,-252.0,0.00029922,2]
[334451926,1723110647170,-252.0,0.00029922,2]